Workbook

Sheet Entry Form
A1: mini
F2: Age shown on | G2: 2020-09-30
B3: Entry Form
D4: Home Pentathlon Nottinghamshire | Q4: Look up table | U4: Look up list CLUBS | W4: Look up list Gender
H5: Age Range 6 to 15 | Q5: 5 | R5: to young
Q6: 6 | R6: U7 | U6: Worksop AC | W6: Male
B7: Ref Number | C7: Club No if none | D7: First Name | E7: Surname | F7: Club | G7: Date of Birth | H7: Gender | I7: Working Age | J7: Age group | K7: Please Add Contact Email | Q7: 7 | R7: U9 | U7: Notts AC | W7: Female
B8: sample | C8: 425 | D8: Billy | E8: Bloggs | F8: Worksop AC | G8: 2008-11-20 | H8: Male | I8: =IF(G8<1," ",(G$2-G8)/365) -> 11.86849315 | J8: =IF(G8<1,"",VLOOKUP(I8,$Q$5:R$32,2,TRUE)) -> U13 | K8: fredblog@ggmail.com | Q8: 8 | R8: U9 | U8: Sutton AC
B9: 1 | J9: =IF(G9<1,"",VLOOKUP(I9,$Q$5:R$32,2,TRUE)) ->  | Q9: 9 | R9: U11 | U9: Retford AC
B10: 2 | J10: =IF(G10<1,"",VLOOKUP(I10,$Q$5:R$32,2,TRUE)) ->  | Q10: 10 | R10: U11 | U10: Mansfield AC
B11: 3 | J11: =IF(G11<1,"",VLOOKUP(I11,$Q$7:R$32,2,TRUE)) ->  | Q11: 11 | R11: U13 | U11: Newark AC
B12: 4 | J12: =IF(G12<1,"",VLOOKUP(I12,$Q$7:R$32,2,TRUE)) ->  | Q12: 12 | R12: U13 | U12: Rushcliffe AC
B13: 5 | J13: =IF(G13<1,"",VLOOKUP(I13,$Q$7:R$32,2,TRUE)) ->  | Q13: 13 | R13: U15 | U13: Guest
Q14: 14 | R14: U15
Q15: 15 | R15: to old
Q16: 16 | R16: to old
B27: the following links are curtsey of Sportshall Associates Limited
B29: For visual guidance on how to take part please see the Youtube playlist below
D30: https://youtu.be/o0PH0Z88SMs?list=PL6DK6xTdLkmwBkVBUkZZ2L_oTT6VXErNO
B32: Guidence Notes
D33: https://www.sportshall.org/wp-content/uploads/2020/08/Home-Pentathlon.pdf
B35: Vertical Jump Scale
D37: https://www.sportshall.org/wp-content/uploads/2020/08/Vertical-Jump-Home-Scale.pdf
B40: When Complete please send the result chart to john to add to the ranking list (see results page for instructions)

Sheet Standing Long Jump
B2: Home Pentathlon Nottinghamshire
C3: Standing Long Jump
B4: Range 0.35 to 2.90 metres ( 2 decimal Points)
E6: Format
B8: Ref Number | C8: Name | D8: Age | E8: Performance | F8: Points
B9: sample | C9: =VLOOKUP(B9,Results!$B$6:K$11,7,FALSE) -> Billy B | D9: =VLOOKUP(B9,Results!$B$6:L$10,5,FALSE) -> U13 | E9: 2.5 | F9: =IF(E9<0.2," ",VLOOKUP(E9,chart!Q$6:Y$105,9,TRUE)) -> 72
B10: 1 | C10: =VLOOKUP(B10,Results!$B$6:K$10,7,TRUE) ->  | D10: =VLOOKUP(B10,Results!$B$6:L$10,5,TRUE) ->  | F10: =IF(E10<0.2," ",VLOOKUP(E10,chart!Q$6:Y$105,9,TRUE)) -> 
B11: 2 | C11: =VLOOKUP(B11,Results!$B$6:K$10,7,TRUE) ->  | D11: =VLOOKUP(B11,Results!$B$6:L$10,5,TRUE) ->  | F11: =IF(E11<0.2," ",VLOOKUP(E11,chart!Q$6:Y$105,9,TRUE)) -> 
B12: 3 | C12: =VLOOKUP(B12,Results!$B$6:K$10,7,TRUE) ->  | D12: =VLOOKUP(B12,Results!$B$6:L$10,5,TRUE) ->  | F12: =IF(E12<0.2," ",VLOOKUP(E12,chart!Q$6:Y$105,9,TRUE)) -> 
B13: 4 | C13: =VLOOKUP(B13,Results!$B$6:K$10,7,TRUE) ->  | D13: =VLOOKUP(B13,Results!$B$6:L$10,5,TRUE) ->  | F13: =IF(E13<0.2," ",VLOOKUP(E13,chart!Q$6:Y$105,9,TRUE)) -> 
B14: 5 | C14: =VLOOKUP(B14,Results!$B$6:K$11,7,TRUE) ->  | D14: =VLOOKUP(B14,Results!$B$6:L$10,5,TRUE) ->  | F14: =IF(E14<0.2," ",VLOOKUP(E14,chart!Q$6:Y$105,9,TRUE)) -> 
B16: You will be using a tape measure the jump from a line on the floor
B17: Record just the best of three Jumps in metres (eg 2.45m)
B18: Remember it is a two feet take off from a Standing Start
B31: Rules (for normal competition)
A32: 1 | B32: The athlete must stand on the mat with both feet behind the take off datum line.
A33: 2 | B33: Techniques involving a crouch or rocking motion prior to the jump are permitted provided that both feet are alongside each other and retain contact with the mat until the start of the jump.
A34: 3 | B34: No part of the athlete must touch the mat in front of the start line prior to take off.
A35: 4 | B35: The athlete should jump as far as possible from a standing position, with a two footed take off. One footed take offs are not permitted.
A36: 5 | B36: The athlete must land on both feet, with both feet being placed on the mat. The measurement lines printed on the mat are for guidance only. If an athlete’s foot lands outside the graduated area and the judges are able to measure the jump, it should be recorded as a good trial.
A37: 6 | B37: The athlete is not required to hold the landing position and may step forward after the jump. Should the athlete step back, fall back or touch the mat or floor behind their heel, a no jump should be recorded.
A38: 7 | B38: Measurement is taken from the take off line to the back of the closest heel on landing.

Sheet Balance
B2: Home Pentathlon Nottinghamshire
C3: Balance
B5: Range whole numbers 1 to 60 Sec (max 15 in each cell)
I6: Secs
B8: Ref Number | C8: Name | D8: Age | E8: Left | F8: Rigth | G8: Left | H8: Right | I8: Total (secs) | J8: Points
B9: sample | C9: =VLOOKUP(B9,Results!$B$6:K$10,7,TRUE) -> Billy B | D9: =VLOOKUP(B9,Results!$B$6:L$10,5,TRUE) -> U13 | E9: 12 | F9: 10 | G9: 9 | H9: 15 | I9: =E9+F9+G9+H9 -> 46 | J9: =IF(I9<1," ",VLOOKUP(I9,chart!P$6:Y$105,10,TRUE)) -> 51
B10: 1 | C10: =VLOOKUP(B10,Results!$B$6:K$10,7,TRUE) ->  | D10: =VLOOKUP(B10,Results!$B$6:L$10,5,TRUE) ->  | I10: =E10+F10+G10+H10 -> 0 | J10: =IF(I10<1," ",VLOOKUP(I10,chart!P$6:Y$105,10,TRUE)) -> 
B11: 2 | C11: =VLOOKUP(B11,Results!$B$6:K$10,7,TRUE) ->  | D11: =VLOOKUP(B11,Results!$B$6:L$10,5,TRUE) ->  | I11: 0 | J11: =IF(I11<1," ",VLOOKUP(I11,chart!P$6:Y$105,10,TRUE)) -> 
B12: 3 | C12: =VLOOKUP(B12,Results!$B$6:K$10,7,TRUE) ->  | D12: =VLOOKUP(B12,Results!$B$6:L$10,5,TRUE) ->  | I12: 0 | J12: =IF(I12<1," ",VLOOKUP(I12,chart!P$6:Y$105,10,TRUE)) -> 
B13: 4 | C13: =VLOOKUP(B13,Results!$B$6:K$10,7,TRUE) ->  | D13: =VLOOKUP(B13,Results!$B$6:L$10,5,TRUE) ->  | I13: 0 | J13: =IF(I13<1," ",VLOOKUP(I13,chart!P$6:Y$105,10,TRUE)) -> 
B14: 5 | C14: =VLOOKUP(B14,Results!$B$6:K$11,7,TRUE) ->  | D14: =VLOOKUP(B14,Results!$B$6:L$10,5,TRUE) ->  | I14: 0 | J14: =IF(I14<1," ",VLOOKUP(I14,chart!P$6:Y$105,10,TRUE)) -> 
B17: Balance on a piece of wood flat on the floor maximum width 40mm
B18: Time each leg in turn (maximum 15sec each time)
B19: Record the time each leg ( Maximum 15sec per Leg)
B20: Enter the times in the yellow boxes
B29: Rules (for Normal Competion)
A30: 1 | B30: Each athlete should be allowed a trial to become familiar with the event.
A31: 2 | B31: The athlete should place their left foot on the beam. The foot must be in line along the centre of the beam and not across the beam.
A32: 3 | B32: Bend the free leg backwards and hold the foot with the corresponding arm. The athlete should hold onto a judge’s arm to gain their balance. When the athlete is ready, they should release the judges supporting arm. This is the signal for the judge to start the stopwatch.
A33: 4 | B33: The watch stops if the athlete lets go of their foot, touches the floor or completes the maximum of 15 seconds.
A34: 5 | B34: Each athlete should have two trials on their left foot and two on their right, alternating each time. (eg, left, right, left, right).
A35: 6 | B35: The time is recorded to the full second on the stopwatch. For example 12.7 = 12 seconds as 13 seconds has not been reached.
A36: 7 | B36: The maximum each athlete can get is 60 seconds, (15 x 4).

Sheet Shuttle
B2: Home Pentathlon Nottinghamshire
C3: Shuttle Run
B4: Range 20.1 to 70.0 Sec (1 decimal Points)
B6: 20 x 5m = 100m
B8: Ref Number | C8: Name | D8: Age | E8: Performance | F8: Points
B9: sample | C9: =VLOOKUP(B9,Results!$B$6:K$10,7,TRUE) -> Billy B | D9: =VLOOKUP(B9,Results!$B$6:L$10,5,TRUE) -> U13 | E9: 55.5 | F9: =IF(E9<1," ",VLOOKUP(E9,chart!W$6:Z$105,4,TRUE)) -> 30
B10: 1 | C10: =VLOOKUP(B10,Results!$B$6:K$10,7,TRUE) ->  | D10: =VLOOKUP(B10,Results!$B$6:L$10,5,TRUE) ->  | F10: =IF(E10<1," ",VLOOKUP(E10,chart!W$6:Z$105,4,TRUE)) -> 
B11: 2 | C11: =VLOOKUP(B11,Results!$B$6:K$10,7,TRUE) ->  | D11: =VLOOKUP(B11,Results!$B$6:L$10,5,TRUE) ->  | F11: =IF(E11<1," ",VLOOKUP(E11,chart!W$6:Z$105,4,TRUE)) -> 
B12: 3 | C12: =VLOOKUP(B12,Results!$B$6:K$10,7,TRUE) ->  | D12: =VLOOKUP(B12,Results!$B$6:L$10,5,TRUE) ->  | F12: =IF(E12<1," ",VLOOKUP(E12,chart!W$6:Z$105,4,TRUE)) -> 
B13: 4 | C13: =VLOOKUP(B13,Results!$B$6:K$10,7,TRUE) ->  | D13: =VLOOKUP(B13,Results!$B$6:L$10,5,TRUE) ->  | F13: =IF(E13<1," ",VLOOKUP(E13,chart!W$6:Z$105,4,TRUE)) -> 
B14: 5 | C14: =VLOOKUP(B14,Results!$B$6:K$10,7,TRUE) ->  | D14: =VLOOKUP(B14,Results!$B$6:L$10,5,TRUE) ->  | F14: =IF(E14<1," ",VLOOKUP(E14,chart!W$6:Z$105,4,TRUE)) -> 
B16: Note
B17: This is 20 laps of 5m (total 100m)
B18: Work between two lines on the floor
B19: one foot must touch the lines at the end of each lap
B20: Data Input Please Only fill in the Yellow boxes

Sheet Vertical
B2: Home Pentathlon Nottinghamshire
C3: Vertical Jump
B4: Range 4 to 75 centimetres (Whole Numbers)
B8: Ref Number | C8: Name | D8: Age | E8: Performance | F8: Points
B9: sample | C9: =VLOOKUP(B9,Results!$B$6:K$10,7,TRUE) -> Billy B | D9: =VLOOKUP(B9,Results!$B$6:L$10,5,TRUE) -> U13 | E9: 25 | F9: =IF(E9<1," ",VLOOKUP(E9,chart!V$6:Y$105,4,TRUE)) -> 25
B10: 1 | C10: =VLOOKUP(B10,Results!$B$6:K$10,7,TRUE) ->  | D10: =VLOOKUP(B10,Results!$B$6:L$10,5,TRUE) ->  | F10: =IF(E10<1," ",VLOOKUP(E10,chart!V$6:Y$105,4,TRUE)) -> 
B11: 2 | C11: =VLOOKUP(B11,Results!$B$6:K$10,7,TRUE) ->  | D11: =VLOOKUP(B11,Results!$B$6:L$10,5,TRUE) ->  | F11: =IF(E11<1," ",VLOOKUP(E11,chart!V$6:Y$105,4,TRUE)) -> 
B12: 3 | C12: =VLOOKUP(B12,Results!$B$6:K$10,7,TRUE) ->  | D12: =VLOOKUP(B12,Results!$B$6:L$10,5,TRUE) ->  | F12: =IF(E12<1," ",VLOOKUP(E12,chart!V$6:Y$105,4,TRUE)) -> 
B13: 4 | C13: =VLOOKUP(B13,Results!$B$6:K$10,7,TRUE) ->  | D13: =VLOOKUP(B13,Results!$B$6:L$10,5,TRUE) ->  | F13: =IF(E13<1," ",VLOOKUP(E13,chart!V$6:Y$105,4,TRUE)) -> 
B14: 5 | C14: =VLOOKUP(B14,Results!$B$6:K$10,7,TRUE) ->  | D14: =VLOOKUP(B14,Results!$B$6:L$10,5,TRUE) ->  | F14: =IF(E14<1," ",VLOOKUP(E14,chart!V$6:Y$105,4,TRUE)) -> 
B16: Remember
B17: print the attached chart ( See the Entry form page for the link) or just mark and measure the wall
B18: Stretch fully when measuring the start (see below)
B19: Jump from a two footed start
B20: Record the best of three jumps (remember 39.8 is recored as 39)
B35: Rules (For a Normal Competition)
A36: 1 | B36: The athlete stands with their back, head and heels touching the wall.
A37: 2 | B37: Both arms should be stretched upwards to push the sliding scale up with their fingertips. Elbows and fingers must be straight and arms should touch the side of the head. Feet must stay flat on the floor.
A38: 3 | B38: Setting the slide - whilst it is clearly important that the slide is set accurately, judges should not have cause to handle the athlete, with the exception that it may assist both the athlete and the judge to guide the athlete’s fingers under the base of the slide. Younger athletes can find it difficult to push the slide up and the judge may assist by raising the slide first and then bringing it down to meet the athlete’s fingertips. The practice of “straightening” an athlete’s arms cannot be permitted. The following practice is recommended:
A39: 4 | B39: The judge should encourage the athlete to stretch to their full extent and then, to stretch again.
A40: 5 | B40: Usually the second stretch will set the slide a little higher.
A41: 6 | B41: If the judge is not satisfied that the athlete has achieved a full stretch, the athlete should be advised of this and given a further opportunity to set the slide.
A42: 7 | B42: If the judge remains dissatisfied with the stretch, the athlete should ask their team manager to accompany them for one further stretch.
A43: 8 | B43: A two centimetre penalty may be applied at the judge’s discretion.
A44: 9 | B44: Any further concerns should be referred to the Field Referee.
A45: 10 | B45: The recording of an athlete’s starting height, reading from the scale on the back plate, will remove the need to repeat the initial stretch for each further trial. The slide can be reset according to this reading. This eliminates further issues over the setting of the scale and saves time.
A46: 11 | B46: The athlete must dip their fingertips in powder and stand sideways on to the wall with the nominated jumping arm closest to the wall. They then jump from a standing position and touch the scale at the highest possible point.
A47: 12 | B47: An athlete may bend their knees and swing their arms in preparation for the event but their feet must not leave the ground until they take their jump.
A48: 13 | B48: It is deemed a no jump if an athlete’s “free” hand touches the wall during the jump.
A49: 14 | B49: Measurement should be taken to the nearest centimetre below the highest point of the chalk mark on the scale. The judges may pull down the sliding scale to record the exact height of the jump.

Sheet Speed Bounce
B2: Home Pentathlon Nottinghamshire
C3: Speed Bounce
B4: Range 3 to 75 (Whole numbers)
B6: Time 20 sec (all Ages)
E7: centimetres
B8: Ref Number | C8: Name | D8: Age | E8: Performance | F8: Points
B9: sample | C9: =VLOOKUP(B9,Results!$B$6:K$10,7,TRUE) -> Billy B | D9: =VLOOKUP(B9,Results!$B$6:L$10,5,TRUE) -> U13 | E9: 40 | F9: =IF(E9<1," ",VLOOKUP(E9,chart!R$6:Y$105,8,TRUE)) -> 38
B10: 1 | C10: =VLOOKUP(B10,Results!$B$6:K$10,7,TRUE) ->  | D10: =VLOOKUP(B10,Results!$B$6:L$10,5,TRUE) ->  | F10: =IF(E10<1," ",VLOOKUP(E10,chart!R$6:Y$105,8,TRUE)) -> 
B11: 2 | C11: =VLOOKUP(B11,Results!$B$6:K$10,7,TRUE) ->  | D11: =VLOOKUP(B11,Results!$B$6:L$10,5,TRUE) ->  | F11: =IF(E11<1," ",VLOOKUP(E11,chart!R$6:Y$105,8,TRUE)) -> 
B12: 3 | C12: =VLOOKUP(B12,Results!$B$6:K$10,7,TRUE) ->  | D12: =VLOOKUP(B12,Results!$B$6:L$10,5,TRUE) ->  | F12: =IF(E12<1," ",VLOOKUP(E12,chart!R$6:Y$105,8,TRUE)) -> 
B13: 4 | C13: =VLOOKUP(B13,Results!$B$6:K$10,7,TRUE) ->  | D13: =VLOOKUP(B13,Results!$B$6:L$10,5,TRUE) ->  | F13: =IF(E13<1," ",VLOOKUP(E13,chart!R$6:Y$105,8,TRUE)) -> 
B14: 5 | C14: =VLOOKUP(B14,Results!$B$6:K$10,7,TRUE) ->  | D14: =VLOOKUP(B14,Results!$B$6:L$10,5,TRUE) ->  | F14: =IF(E14<1," ",VLOOKUP(E14,chart!R$6:Y$105,8,TRUE)) -> 
B15: Note
B16: Note I am useing 20 secs for all ages to make things score easier and it is Christmas
B17: Record only Clear jumps
B18: Minimum Height 150 mm or 6"
B19: Use a book on edge or rolled up towels to make the hieght
B20: Use one person to time the jumps and one to count makes things easier
B38: Rules (for a Normal Competition)
A39: 1 | B39: Participants must wear suitable footwear. An athlete is not permitted to compete in bare feet.
A40: 2 | B40: Speed Bounce is a two-footed jump in which an athlete must take off and land on both feet – the athlete’s feet should leave the mat simultaneously and land on the mat simultaneously.
A41: 3 | B41: The athlete should cross the wedge as many times as possible within the allocated time period as follows: Under 11’s (years 5 & 6) – 20 seconds, Under 13’s and Under 15’s (years 7, 8, 9 & 10) – 30 seconds.
A42: 4 | B42: Any athlete undertaking a trial and considered to be using an incorrect technique should be stopped. They should be offered an explanation as to the correct technique and permitted a fresh trial after an adequate period of rest.
A43: 5 | B43: The number of “good” bounces should be recorded, i.e. the number of times the athlete completes a two footed jump over the wedge. Whilst any bounce in which the athlete lands on the wedge should not be counted, it is not an offence to clip or brush the wedge.

Sheet Results
B1: Home Pentathlon Nottinghamshire
B2: Results Table
B3: No manual inputs on this Page | K3: metres | M3: number | O3: seconds | Q3: centimetres | S3: number | V3: Contact Email
K4: Distance | L4: Points | M4: Score | N4: Points | O4: Time | P4: points | Q4: Distance | R4: points | S4: Number | T4: Points
B5: ref | C5: Club No | D5: First Name | E5: Surname | F5: Age | G5: Initial | H5: Name | I5: Gender | J5: Club | K5: Long Jump | M5: Balance | O5: Shuttle Run | Q5: Vertical Jump | S5: Speed Bounce | U5: Total
B6: sample | C6: 425 | D6: Billy | E6: Bloggs | F6: U13 | G6: B | H6: Billy B | I6: =IF(ISBLANK('Entry Form'!H8),"",'Entry Form'!H8) -> Male | J6: Newark AC | K6: =VLOOKUP(B6,'Standing Long Jump'!$B$9:$F$13,4,FALSE) -> 2.5 | L6: =IF('Standing Long Jump'!E9=0, "0",VLOOKUP(B6,'Standing Long Jump'!$B$9:$F$13,5,FALSE)) -> 72 | M6: =VLOOKUP($B6,Balance!$B$9:$J$14,8,FALSE) -> 46 | N6: =IF(Balance!I9=0,0,VLOOKUP($B6,Balance!$B$9:$J$14,9,FALSE)) -> 51 | O6: =VLOOKUP($B6,Shuttle!$B$9:$F$13,4,FALSE) -> 55.5 | P6: =IF(Shuttle!E9=0,"0",VLOOKUP($B6,Shuttle!$B$9:$F$13,5,FALSE)) -> 30 | Q6: =VLOOKUP($B6,Vertical!$B$9:$F$13,4,FALSE) -> 25 | R6: =IF(Vertical!E9=0,"0",VLOOKUP($B6,Vertical!$B$9:$F$13,5,FALSE)) -> 25 | S6: =VLOOKUP($B6,'Speed Bounce'!$B$9:$F$13,4,FALSE) -> 40 | T6: =IF('Speed Bounce'!E9=0,"0",VLOOKUP($B6,'Speed Bounce'!$B$9:$F$13,5,FALSE)) -> 38 | U6: =L6+N6+P6+R6+T6 -> 216 | V6: fredblog@ggmail.com
B7: 1 | C7: =IF(ISBLANK('Entry Form'!C9),"",'Entry Form'!C9) ->  | D7: =IF(ISBLANK('Entry Form'!D9),"",'Entry Form'!D9) ->  | E7: =IF(ISBLANK('Entry Form'!E9),"",'Entry Form'!E9) ->  | F7: ='Entry Form'!J9 ->  | G7: =LEFT(E7,1) ->  | H7: =CONCATENATE(D7,L$1,G7) ->  | I7: =IF(ISBLANK('Entry Form'!H9),"",'Entry Form'!H9) ->  | J7: =IF(ISBLANK('Entry Form'!F9),"",'Entry Form'!F9) ->  | K7: =VLOOKUP(B7,'Standing Long Jump'!$B$9:$F$13,4,FALSE) -> 0 | L7: =IF('Standing Long Jump'!E10=0, "0",VLOOKUP(B7,'Standing Long Jump'!$B$9:$F$13,5,FALSE)) -> 0 | M7: =VLOOKUP($B7,Balance!$B$9:$J$14,8,FALSE) -> 0 | N7: =IF(Balance!I10=0,0,VLOOKUP($B7,Balance!$B$9:$J$14,9,FALSE)) -> 0 | O7: =VLOOKUP($B7,Shuttle!$B$9:$F$13,4,FALSE) -> 0 | P7: =IF(Shuttle!E10=0,"0",VLOOKUP($B7,Shuttle!$B$9:$F$13,5,FALSE)) -> 0 | Q7: =VLOOKUP($B7,Vertical!$B$9:$F$13,4,FALSE) -> 0 | R7: =IF(Vertical!E10=0,"0",VLOOKUP($B7,Vertical!$B$9:$F$13,5,FALSE)) -> 0 | S7: =VLOOKUP($B7,'Speed Bounce'!$B$9:$F$13,4,FALSE) -> 0 | T7: =IF('Speed Bounce'!E10=0,"0",VLOOKUP($B7,'Speed Bounce'!$B$9:$F$13,5,FALSE)) -> 0 | U7: =L7+N7+P7+R7+T7 -> 0 | V7: ='Entry Form'!K9 -> 0
B8: 2 | C8: =IF(ISBLANK('Entry Form'!C10),"",'Entry Form'!C10) ->  | D8: =IF(ISBLANK('Entry Form'!D10),"",'Entry Form'!D10) ->  | E8: =IF(ISBLANK('Entry Form'!E10),"",'Entry Form'!E10) ->  | F8: ='Entry Form'!J10 ->  | G8: =LEFT(E8,1) ->  | H8: =CONCATENATE(D8,L$1,G8) ->  | I8: =IF(ISBLANK('Entry Form'!H10),"",'Entry Form'!H10) ->  | J8: =IF(ISBLANK('Entry Form'!F10),"",'Entry Form'!F10) ->  | K8: =VLOOKUP(B8,'Standing Long Jump'!$B$9:$F$13,4,FALSE) -> 0 | L8: =IF('Standing Long Jump'!E11=0, "0",VLOOKUP(B8,'Standing Long Jump'!$B$9:$F$13,5,FALSE)) -> 0 | M8: =VLOOKUP($B8,Balance!$B$9:$J$14,8,FALSE) -> 0 | N8: =IF(Balance!I11=0,0,VLOOKUP($B8,Balance!$B$9:$J$14,9,FALSE)) -> 0 | O8: =VLOOKUP($B8,Shuttle!$B$9:$F$13,4,FALSE) -> 0 | P8: =IF(Shuttle!E11=0,"0",VLOOKUP($B8,Shuttle!$B$9:$F$13,5,FALSE)) -> 0 | Q8: =VLOOKUP($B8,Vertical!$B$9:$F$13,4,FALSE) -> 0 | R8: =IF(Vertical!E11=0,"0",VLOOKUP($B8,Vertical!$B$9:$F$13,5,FALSE)) -> 0 | S8: =VLOOKUP($B8,'Speed Bounce'!$B$9:$F$13,4,FALSE) -> 0 | T8: =IF('Speed Bounce'!E11=0,"0",VLOOKUP($B8,'Speed Bounce'!$B$9:$F$13,5,FALSE)) -> 0 | U8: =L8+N8+P8+R8+T8 -> 0 | V8: ='Entry Form'!K10 -> 0
B9: 3 | C9: =IF(ISBLANK('Entry Form'!C11),"",'Entry Form'!C11) ->  | D9: =IF(ISBLANK('Entry Form'!D11),"",'Entry Form'!D11) ->  | E9: =IF(ISBLANK('Entry Form'!E11),"",'Entry Form'!E11) ->  | F9: ='Entry Form'!J11 ->  | G9: =LEFT(E9,1) ->  | H9: =CONCATENATE(D9,L$1,G9) ->  | I9: =IF(ISBLANK('Entry Form'!H11),"",'Entry Form'!H11) ->  | J9: =IF(ISBLANK('Entry Form'!F11),"",'Entry Form'!F11) ->  | K9: =VLOOKUP(B9,'Standing Long Jump'!$B$9:$F$13,4,FALSE) -> 0 | L9: =IF('Standing Long Jump'!E12=0, "0",VLOOKUP(B9,'Standing Long Jump'!$B$9:$F$13,5,FALSE)) -> 0 | M9: =VLOOKUP($B9,Balance!$B$9:$J$14,8,FALSE) -> 0 | N9: =IF(Balance!I12=0,0,VLOOKUP($B9,Balance!$B$9:$J$14,9,FALSE)) -> 0 | O9: =VLOOKUP($B9,Shuttle!$B$9:$F$13,4,FALSE) -> 0 | P9: =IF(Shuttle!E12=0,"0",VLOOKUP($B9,Shuttle!$B$9:$F$13,5,FALSE)) -> 0 | Q9: =VLOOKUP($B9,Vertical!$B$9:$F$13,4,FALSE) -> 0 | R9: =IF(Vertical!E12=0,"0",VLOOKUP($B9,Vertical!$B$9:$F$13,5,FALSE)) -> 0 | S9: =VLOOKUP($B9,'Speed Bounce'!$B$9:$F$13,4,FALSE) -> 0 | T9: =IF('Speed Bounce'!E12=0,"0",VLOOKUP($B9,'Speed Bounce'!$B$9:$F$13,5,FALSE)) -> 0 | U9: =L9+N9+P9+R9+T9 -> 0 | V9: ='Entry Form'!K11 -> 0
B10: 4 | C10: =IF(ISBLANK('Entry Form'!C12),"",'Entry Form'!C12) ->  | D10: =IF(ISBLANK('Entry Form'!D12),"",'Entry Form'!D12) ->  | E10: =IF(ISBLANK('Entry Form'!E12),"",'Entry Form'!E12) ->  | F10: ='Entry Form'!J12 ->  | G10: =LEFT(E10,1) ->  | H10: =CONCATENATE(D10,L$1,G10) ->  | I10: =IF(ISBLANK('Entry Form'!H12),"",'Entry Form'!H12) ->  | J10: =IF(ISBLANK('Entry Form'!F12),"",'Entry Form'!F12) ->  | K10: =VLOOKUP(B10,'Standing Long Jump'!$B$9:$F$13,4,FALSE) -> 0 | L10: =IF('Standing Long Jump'!E13=0, "0",VLOOKUP(B10,'Standing Long Jump'!$B$9:$F$13,5,FALSE)) -> 0 | M10: =VLOOKUP($B10,Balance!$B$9:$J$14,8,FALSE) -> 0 | N10: =IF(Balance!I13=0,0,VLOOKUP($B10,Balance!$B$9:$J$14,9,FALSE)) -> 0 | O10: =VLOOKUP($B10,Shuttle!$B$9:$F$13,4,FALSE) -> 0 | P10: =IF(Shuttle!E13=0,"0",VLOOKUP($B10,Shuttle!$B$9:$F$13,5,FALSE)) -> 0 | Q10: =VLOOKUP($B10,Vertical!$B$9:$F$13,4,FALSE) -> 0 | R10: =IF(Vertical!E13=0,"0",VLOOKUP($B10,Vertical!$B$9:$F$13,5,FALSE)) -> 0 | S10: =VLOOKUP($B10,'Speed Bounce'!$B$9:$F$13,4,FALSE) -> 0 | T10: =IF('Speed Bounce'!E13=0,"0",VLOOKUP($B10,'Speed Bounce'!$B$9:$F$13,5,FALSE)) -> 0 | U10: 0 | V10: ='Entry Form'!K12 -> 0
B11: 5 | C11: =IF(ISBLANK('Entry Form'!C13),"",'Entry Form'!C13) ->  | D11: =IF(ISBLANK('Entry Form'!D13),"",'Entry Form'!D13) ->  | E11: =IF(ISBLANK('Entry Form'!E13),"",'Entry Form'!E13) ->  | F11: ='Entry Form'!J13 ->  | G11: =LEFT(E11,1) ->  | H11: =CONCATENATE(D11,L$1,G11) ->  | I11: =IF(ISBLANK('Entry Form'!H13),"",'Entry Form'!H13) ->  | J11: =IF(ISBLANK('Entry Form'!F13),"",'Entry Form'!F13) ->  | K11: =VLOOKUP(B11,'Standing Long Jump'!$B$9:$F$14,4,FALSE) -> 0 | L11: =IF('Standing Long Jump'!E14=0, "0",VLOOKUP(B11,'Standing Long Jump'!$B$9:$F$14,5,FALSE)) -> 0 | M11: =VLOOKUP($B11,Balance!$B$9:$J$14,8,FALSE) -> 0 | N11: =IF(Balance!I14=0,0,VLOOKUP($B11,Balance!$B$9:$J$14,9,FALSE)) -> 0 | O11: =VLOOKUP($B11,Shuttle!$B$9:$F$14,4,FALSE) -> 0 | P11: =IF(Shuttle!E14=0,"0",VLOOKUP($B11,Shuttle!$B$9:$F$14,5,FALSE)) -> 0 | Q11: =VLOOKUP($B11,Vertical!$B$9:$F$14,4,FALSE) -> 0 | R11: =IF(Vertical!E14=0,"0",VLOOKUP($B11,Vertical!$B$9:$F$14,5,FALSE)) -> 0 | S11: =VLOOKUP($B11,'Speed Bounce'!$B$9:$F$14,4,FALSE) -> 0 | T11: =IF('Speed Bounce'!E14=0,"0",VLOOKUP($B11,'Speed Bounce'!$B$9:$F$14,5,FALSE)) -> 0 | U11: =L11+N11+P11+R11+T11 -> 0 | V11: ='Entry Form'!K13 -> 0

Sheet chart (hidden)
C1: 1 | D1: 0.35 | E1: 3 | I1: 4 | J1: 20 | P1: 1 | Q1: 0.35 | R1: 3 | V1: 4 | W1: 20
C2: 60 | D2: 2.9 | E2: 75 | I2: 75 | J2: 70 | P2: 60 | Q2: 2.9 | R2: 75 | V2: 75 | W2: 70
J3: 0.2 | O3: 11 | P3: 10 | Q3: 9 | R3: 8 | S3: 7 | T3: 6 | U3: 5 | V3: 4 | W3: 3 | X3: 2 | Y3: 1
B4: GIRLS POINTS | C4: Balance test 4 x 15 sec | D4: Standing long jump | E4: Speed Bounc 20 sec | F4: Target throw | G4: Hi Stepper 4 x 8 m | H4: Chest Push 1 kg | I4: Vertical Jump | J4: Shuttle Run 10 x 10 m | K4: Standing Triple Jump | L4: BOYS POINTS | O4: Points Field | P4: Balance test 4 x 15 sec | Q4: Standing long jump | R4: Speed Bounc 20 sec | S4: Target throw | T4: Hi Stepper 4 x 8 m | U4: Chest Push 1 kg | V4: Vertical Jump | W4: Shuttle Run 20 x 5 m | X4: Standing Triple Jump | Y4: Points Field | Z4: Points Track
C5: sec | D5: mtrs | E5: number | F5: scores | G5: sec | H5: mtrs | I5: cms | J5: sec | K5: mtrs | P5: sec | Q5: mtrs | R5: number | S5: scores | T5: sec | U5: mtrs | V5: cms | W5: sec | X5: mtrs
B6: 70 | C6: 60 | D6: 2.4 | E6: 70 | F6: 24 | G6: 11 | H6: 10.5 | I6: 59 | J6: 24 | K6: 6.85 | L6: =B6 -> 70 | O6: 1 | P6: 1 | Q6: 0.35 | R6: 3 | T6: 10 | U6: 1.5 | V6: 1 | W6: 20.5 | X6: 1 | Y6: =O6 -> 1 | Z6: 100
B7: 69 | C7: 59 | D7: 2.37 | E7: 69 | G7: 11.2 | J7: =J6+J$3 -> 24.2 | K7: 6.75 | L7: =B7 -> 69 | O7: 2 | P7: 2 | Q7: 0.38 | R7: 4 | T7: 10.5 | V7: 2 | W7: 21 | X7: 1.1 | Y7: 2 | Z7: 99
B8: 68 | C8: 58 | D8: 2.34 | E8: 68 | F8: 23 | G8: 11.4 | H8: 10.25 | I8: 58 | J8: =J7+J$3 -> 24.4 | K8: 6.65 | L8: 68 | O8: 3 | P8: 3 | Q8: 0.41 | R8: 6 | S8: 1 | T8: 11 | V8: 3 | W8: 21.5 | X8: 1.3 | Y8: 3 | Z8: 98
B9: 67 | C9: 57 | D9: 2.31 | E9: 67 | G9: 11.6 | I9: 57 | J9: 24.6 | K9: 6.55 | L9: 67 | O9: 4 | P9: 4 | Q9: 0.44 | R9: 8 | T9: 11.5 | U9: 2 | V9: 4 | W9: 22 | X9: 1.5 | Y9: 4 | Z9: 97
B10: 66 | D10: 2.28 | E10: 66 | F10: 22 | G10: 11.8 | H10: 10 | J10: 24.8 | K10: 6.45 | L10: 66 | O10: 5 | P10: 5 | Q10: 0.47 | R10: 9 | T10: 12 | V10: 5 | W10: 22.5 | X10: 1.7 | Y10: 5 | Z10: 96
B11: 65 | C11: 56 | D11: 2.25 | E11: 65 | G11: 12 | H11: 9.75 | I11: 56 | J11: 25 | K11: 6.36 | L11: 65 | O11: 6 | P11: 6 | Q11: 0.5 | R11: 10 | S11: 2 | T11: 12.5 | U11: 2.5 | V11: 6 | W11: 23 | X11: 1.8 | Y11: 6 | Z11: 95
B12: 64 | D12: 2.22 | E12: 64 | G12: 12.2 | H12: 9.5 | I12: 55 | J12: 25.2 | K12: 6.28 | L12: 64 | O12: 7 | P12: 7 | Q12: 0.53 | R12: 11 | T12: 13 | V12: 7 | W12: 23.5 | X12: 1.9 | Y12: 7 | Z12: 94
B13: 63 | C13: 55 | D13: 2.19 | E13: 63 | F13: 21 | G13: 12.4 | J13: 25.4 | K13: 6.2 | L13: 63 | O13: 8 | P13: 8 | Q13: 0.56 | R13: 12 | T13: 13.5 | U13: 3.75 | V13: 8 | W13: 24 | X13: 2 | Y13: 8 | Z13: 93
B14: 62 | D14: 2.16 | E14: 62 | G14: 12.6 | H14: 9.25 | I14: 54 | J14: 25.6 | K14: 6.12 | L14: 62 | O14: 9 | P14: 9 | Q14: 0.59 | R14: 13 | S14: 3 | T14: 14 | V14: 9 | W14: 24.5 | X14: 2.2 | Y14: 9 | Z14: 92
B15: 61 | C15: 54 | D15: 2.13 | E15: 61 | G15: 12.8 | I15: 53 | J15: 25.8 | K15: 6.04 | L15: 61 | O15: 10 | P15: 10 | Q15: 0.62 | R15: 14 | T15: 14.5 | U15: 3 | V15: 10 | W15: 25 | X15: 2.4 | Y15: 10 | Z15: 91
B16: 60 | D16: 2.1 | E16: 60 | F16: 20 | G16: 13 | H16: 9 | J16: 26 | K16: 5.96 | L16: 60 | O16: 11 | P16: 11 | Q16: 0.65 | R16: 15 | T16: 15 | V16: 11 | W16: 25.5 | X16: 2.5 | Y16: 11 | Z16: 90
B17: 59 | C17: 53 | D17: 2.07 | E17: 59 | G17: 13.2 | I17: 52 | J17: 26.2 | K17: 5.88 | L17: 59 | O17: 12 | P17: 12 | Q17: 0.68 | R17: 16 | S17: 4 | T17: 15.5 | V17: 12 | W17: 26 | X17: 2.6 | Y17: 12 | Z17: 89
B18: 58 | D18: 2.04 | E18: 58 | G18: 13.4 | H18: 8.75 | I18: 51 | J18: 26.4 | K18: 5.88 | L18: 58 | O18: 13 | P18: 13 | Q18: 0.71 | R18: 17 | T18: 16 | U18: 3.25 | V18: 13 | W18: 26.5 | X18: 2.7 | Y18: 13 | Z18: 88
B19: 57 | C19: 52 | D19: 2.01 | E19: 57 | F19: 19 | G19: 13.6 | H19: 8.5 | J19: 26.6 | K19: 5.72 | L19: 57 | O19: 14 | P19: 14 | Q19: 0.74 | R19: 18 | T19: 16.5 | V19: 14 | W19: 27 | X19: 2.8 | Y19: 14 | Z19: 87
B20: 56 | C20: 51 | D20: 1.98 | E20: 56 | G20: 13.8 | H20: 8.25 | I20: 50 | J20: 26.8 | K20: 5.64 | L20: 56 | O20: 15 | P20: 15 | Q20: 0.77 | R20: 19 | S20: 5 | T20: 17 | V20: 15 | W20: 27.5 | X20: 2.9 | Y20: 15 | Z20: 86
B21: 55 | C21: 50 | D21: 1.95 | E21: 55 | G21: 14 | H21: 8 | I21: 49 | J21: 27 | K21: 5.56 | L21: 55 | O21: 16 | P21: 16 | Q21: 0.8 | R21: 20 | T21: 17.5 | U21: 3.5 | V21: 16 | W21: 28 | X21: 3 | Y21: 16 | Z21: 85
B22: 54 | C22: 49 | D22: 1.92 | E22: 54 | F22: 18 | G22: 14.2 | I22: 48 | J22: 27.2 | K22: 5.48 | L22: 54 | O22: 17 | P22: 17 | Q22: 0.83 | R22: 21 | T22: 18 | V22: 17 | W22: 28.5 | X22: 3.1 | Y22: 17 | Z22: 84
B23: 53 | C23: 48 | D23: 1.89 | E23: 53 | G23: 14.4 | H23: 7.75 | I23: 47 | J23: 27.4 | K23: 5.4 | L23: 53 | O23: 18 | P23: 18 | Q23: 0.86 | S23: 6 | T23: 18.5 | V23: 18 | W23: 29 | X23: 3.2 | Y23: 18 | Z23: 83
B24: 52 | C24: 47 | D24: 1.86 | E24: 52 | G24: 14.5 | H24: 7.5 | I24: 46 | J24: 27.6 | K24: 5.34 | L24: 52 | O24: 19 | P24: 19 | Q24: 0.89 | R24: 22 | T24: 19 | U24: 3.75 | V24: 19 | W24: 29.5 | X24: 3.3 | Y24: 19 | Z24: 82
B25: 51 | C25: 46 | D25: 1.83 | E25: 51 | F25: 17 | G25: 14.6 | I25: 45 | J25: 27.8 | K25: 5.28 | L25: 51 | O25: 20 | P25: 20 | Q25: 0.92 | R25: 23 | T25: 19.5 | V25: 20 | W25: 30 | X25: 3.4 | Y25: 20 | Z25: 81
B26: 50 | C26: 45 | D26: 1.8 | E26: 50 | G26: 14.7 | H26: 7.25 | I26: 44 | J26: 28 | K26: 5.22 | L26: 50 | O26: 21 | P26: 21 | Q26: 0.95 | R26: 24 | S26: 7 | T26: 20 | V26: 21 | W26: 30.5 | X26: 3.5 | Y26: 21 | Z26: 80
B27: 49 | C27: 44 | D27: 1.78 | E27: 49 | G27: 14.8 | H27: 7 | I27: 43 | J27: 28.2 | K27: 5.16 | L27: 49 | O27: 22 | P27: 22 | Q27: 0.98 | R27: 25 | T27: 20.5 | U27: 4 | V27: 22 | W27: 31 | X27: 3.6 | Y27: 22 | Z27: 79
B28: 48 | C28: 43 | D28: 1.76 | F28: 16 | G28: 14.9 | I28: 42 | J28: 28.4 | K28: 5.1 | L28: 48 | O28: 23 | P28: 23 | Q28: 1.01 | T28: 21 | V28: 23 | W28: 31.5 | X28: 3.7 | Y28: 23 | Z28: 78
B29: 47 | C29: 42 | D29: 1.74 | E29: 48 | G29: 15 | H29: 6.75 | I29: 41 | J29: 28.6 | K29: 5.04 | L29: 47 | O29: 24 | P29: 24 | Q29: 1.04 | R29: 26 | S29: 8 | T29: 21.5 | V29: 24 | W29: 32 | X29: 3.8 | Y29: 24 | Z29: 77
B30: 46 | C30: 41 | D30: 1.72 | G30: 15.1 | H30: 6.5 | I30: 40 | J30: 28.8 | K30: 4.98 | L30: 46 | O30: 25 | P30: 25 | Q30: 1.07 | R30: 27 | T30: 22 | U30: 4.25 | V30: 25 | W30: 32.5 | X30: 3.9 | Y30: 25 | Z30: 76
B31: 45 | D31: 1.7 | E31: 47 | F31: 15 | G31: 15.2 | J31: 29 | K31: 4.92 | L31: 45 | O31: 26 | P31: 26 | Q31: 1.1 | R31: 28 | T31: 22.5 | V31: 26 | W31: 33 | X31: 3.95 | Y31: 26 | Z31: 75
B32: 44 | C32: 40 | D32: 1.68 | E32: 46 | G32: 15.3 | H32: 6.25 | I32: 39 | J32: 29.2 | K32: 4.86 | L32: 44 | O32: 27 | P32: 27 | Q32: 1.13 | R32: 29 | S32: 9 | T32: 23 | V32: 27 | W32: 33.5 | X32: 4 | Y32: 27 | Z32: 74
B33: 43 | D33: 1.66 | E33: 45 | G33: 15.4 | I33: 38 | J33: 29.4 | K33: 4.8 | L33: 43 | O33: 28 | P33: 28 | Q33: 1.16 | R33: 30 | T33: 23.5 | U33: 4.5 | V33: 28 | W33: 34 | X33: 4.05 | Y33: 28 | Z33: 73
B34: 42 | C34: 39 | D34: 1.64 | E34: 44 | F34: 14 | G34: 15.5 | H34: 6 | J34: 29.6 | K34: 4.75 | L34: 42 | O34: 29 | P34: 29 | Q34: 1.19 | R34: 31 | T34: 24 | V34: 29 | W34: 34.5 | X34: 4.1 | Y34: 29 | Z34: 72
B35: 41 | D35: 1.62 | E35: 43 | G35: 15.6 | I35: 37 | J35: 29.8 | K35: 4.7 | L35: 41 | O35: 30 | P35: 30 | Q35: 1.22 | R35: 32 | S35: 10 | T35: 24.5 | V35: 30 | W35: 35 | X35: 4.15 | Y35: 30 | Z35: 71
B36: 40 | C36: 38 | D36: 1.6 | E36: 42 | G36: 15.7 | H36: 5.75 | I36: 36 | J36: 30 | K36: 4.65 | L36: 40 | O36: 31 | P36: 31 | Q36: 1.25 | R36: 33 | T36: 25 | U36: 4.75 | V36: 31 | W36: 35.5 | X36: 4.2 | Y36: 31 | Z36: 70
B37: 39 | D37: 1.59 | E37: 41 | F37: 13 | G37: 15.8 | J37: 30.2 | K37: 4.6 | L37: 39 | O37: 32 | P37: 32 | Q37: 1.28 | R37: 34 | T37: 25.5 | V37: 32 | W37: 36 | X37: 4.25 | Y37: 32 | Z37: 69
B38: 38 | C38: 37 | D38: 1.58 | E38: 40 | G38: 15.9 | H38: 5.5 | I38: 35 | J38: 30.4 | K38: 4.55 | L38: 38 | O38: 33 | P38: 33 | Q38: 1.31 | R38: 35 | S38: 11 | T38: 26 | U38: 5 | V38: 33 | W38: 36.5 | X38: 4.3 | Y38: 33 | Z38: 68
B39: 37 | D39: 1.57 | E39: 39 | G39: 16 | I39: 34 | J39: 30.6 | K39: 4.5 | L39: 37 | O39: 34 | P39: 34 | Q39: 1.34 | R39: 36 | T39: 26.5 | V39: 34 | W39: 37 | X39: 4.35 | Y39: 34 | Z39: 67
B40: 36 | C40: 36 | D40: 1.56 | E40: 38 | F40: 12 | G40: 16.1 | H40: 5.25 | J40: 30.8 | K40: 4.45 | L40: 36 | O40: 35 | P40: 35 | Q40: 1.37 | R40: 37 | T40: 27 | V40: 35 | W40: 37.5 | X40: 4.4 | Y40: 35 | Z40: 66
B41: 35 | C41: 35 | D41: 1.55 | E41: 37 | G41: 16.2 | I41: 33 | J41: 31 | K41: 4.4 | L41: 35 | O41: 36 | P41: 36 | Q41: 1.4 | R41: 38 | S41: 12 | T41: 27.5 | U41: 5.25 | V41: 36 | W41: 38 | X41: 4.45 | Y41: 36 | Z41: 65
B42: 34 | C42: 34 | D42: 1.54 | E42: 36 | G42: 16.3 | I42: 32 | J42: 31.2 | K42: 4.35 | L42: 34 | O42: 37 | Q42: 1.43 | R42: 39 | T42: 28 | V42: 37 | W42: 38.5 | X42: 4.5 | Y42: 37 | Z42: 64
B43: 33 | C43: 33 | D43: 1.53 | E43: 35 | F43: 11 | G43: 16.4 | H43: 5 | J43: 31.4 | K43: 4.3 | L43: 33 | O43: 38 | P43: 37 | Q43: 1.46 | R43: 40 | T43: 28.5 | U43: 5.5 | V43: 38 | W43: 39 | X43: 4.55 | Y43: 38 | Z43: 63
B44: 32 | C44: 32 | D44: 1.52 | E44: 34 | G44: 16.5 | I44: 31 | J44: 31.6 | K44: 4.25 | L44: 32 | O44: 39 | Q44: 1.49 | R44: 41 | S44: 13 | T44: 29 | V44: 39 | W44: 39.5 | X44: 4.6 | Y44: 39 | Z44: 62
B45: 31 | C45: 31 | D45: 1.51 | E45: 33 | G45: 16.6 | H45: 4.75 | I45: 30 | J45: 31.8 | K45: 4.2 | L45: 31 | O45: 40 | P45: 38 | Q45: 1.52 | R45: 42 | T45: 29.5 | U45: 5.75 | V45: 40 | W45: 40 | X45: 4.65 | Y45: 40 | Z45: 61
B46: 30 | C46: 30 | D46: 1.5 | E46: 32 | F46: 10 | G46: 16.8 | I46: 29 | J46: 32 | K46: 4.15 | L46: 30 | O46: 41 | Q46: 1.55 | R46: 43 | T46: 30 | V46: 41 | W46: 40.5 | X46: 4.7 | Y46: 41 | Z46: 60
B47: 29 | C47: 29 | D47: 1.48 | E47: 31 | G47: 17 | J47: 32.2 | K47: 4.1 | L47: 29 | O47: 42 | P47: 39 | Q47: 1.58 | R47: 44 | S47: 14 | T47: 30.5 | U47: 6 | V47: 42 | W47: 41 | X47: 4.75 | Y47: 42 | Z47: 59
B48: 28 | C48: 28 | D48: 1.46 | E48: 30 | G48: 17.2 | H48: 4.5 | I48: 28 | J48: 32.4 | K48: 4.05 | L48: 28 | O48: 43 | Q48: 1.61 | R48: 45 | T48: 31 | V48: 43 | W48: 41.5 | X48: 4.8 | Y48: 43 | Z48: 58
B49: 27 | C49: 27 | D49: 1.44 | E49: 29 | F49: 9 | G49: 17.4 | I49: 27 | J49: 32.6 | K49: 4 | L49: 27 | O49: 44 | P49: 40 | Q49: 1.64 | R49: 46 | T49: 31.5 | U49: 6.25 | V49: 44 | W49: 42 | X49: 4.86 | Y49: 44 | Z49: 57
B50: 26 | C50: 26 | D50: 1.42 | E50: 28 | G50: 17.6 | I50: 26 | J50: 32.8 | K50: 3.95 | L50: 26 | O50: 45 | Q50: 1.67 | R50: 47 | S50: 15 | T50: 32 | V50: 45 | W50: 42.5 | X50: 4.92 | Y50: 45 | Z50: 56
B51: 25 | C51: 25 | D51: 1.4 | E51: 27 | G51: 18 | H51: 4.25 | J51: 33 | K51: 3.9 | L51: 25 | O51: 46 | P51: 41 | Q51: 1.7 | T51: 32.5 | U51: 6.5 | V51: 46 | W51: 43 | X51: 4.98 | Y51: 46 | Z51: 55
B52: 24 | C52: 24 | D52: 1.38 | E52: 26 | F52: 8 | G52: 18.3 | I52: 25 | J52: 33.2 | K52: 3.8 | L52: 24 | O52: 47 | P52: 42 | Q52: 1.73 | R52: 48 | T52: 33 | U52: 6.75 | V52: 47 | W52: 43.5 | X52: 5.04 | Y52: 47 | Z52: 54
B53: 23 | C53: 23 | D53: 1.36 | G53: 18.6 | I53: 24 | J53: 33.4 | K53: 3.7 | L53: 23 | O53: 48 | P53: 43 | Q53: 1.76 | S53: 16 | T53: 33.5 | V53: 48 | W53: 44 | X53: 5.1 | Y53: 48 | Z53: 53
B54: 22 | C54: 22 | D54: 1.34 | E54: 25 | G54: 18.9 | H54: 4 | I54: 23 | J54: 33.6 | K54: 3.6 | L54: 22 | O54: 49 | P54: 44 | Q54: 1.79 | R54: 49 | T54: 34 | U54: 7 | V54: 49 | W54: 44.5 | X54: 5.16 | Y54: 49 | Z54: 52
B55: 21 | C55: 21 | D55: 1.32 | E55: 24 | F55: 7 | G55: 19.2 | J55: 33.8 | K55: 3.5 | L55: 21 | O55: 50 | P55: 45 | Q55: 1.82 | R55: 50 | T55: 34.5 | U55: 7.25 | V55: 50 | W55: 45 | X55: 5.22 | Y55: 50 | Z55: 51
B56: 20 | C56: 20 | D56: 1.3 | E56: 23 | G56: 19.6 | I56: 22 | J56: 34 | K56: 3.4 | L56: 20 | O56: 51 | P56: 46 | Q56: 1.85 | R56: 51 | S56: 17 | T56: 35 | V56: 51 | W56: 45.5 | X56: 5.28 | Y56: 51 | Z56: 50
B57: 19 | C57: 19 | D57: 1.25 | E57: 22 | G57: 20 | H57: 3.75 | J57: 34.2 | K57: 3.3 | L57: 19 | O57: 52 | P57: 47 | Q57: 1.88 | R57: 52 | T57: 35.5 | U57: 7.5 | V57: 52 | W57: 46 | X57: 5.34 | Y57: 52 | Z57: 49
B58: 18 | C58: 18 | D58: 1.2 | F58: 6 | G58: 20.5 | I58: 21 | J58: 34.4 | K58: 3.2 | L58: 18 | O58: 53 | P58: 48 | Q58: 1.91 | R58: 53 | T58: 36 | U58: 7.75 | V58: 53 | W58: 46.5 | X58: 5.4 | Y58: 53 | Z58: 48
B59: 17 | C59: 17 | D59: 1.15 | E59: 21 | G59: 21 | J59: 34.6 | K59: 3.1 | L59: 17 | O59: 54 | P59: 49 | Q59: 1.94 | R59: 54 | S59: 18 | T59: 36.5 | V59: 54 | W59: 47 | X59: 5.48 | Y59: 54 | Z59: 47
B60: 16 | C60: 16 | D60: 1.1 | E60: 20 | G60: 21.5 | H60: 3.5 | I60: 20 | J60: 34.8 | K60: 3 | L60: 16 | O60: 55 | P60: 50 | Q60: 1.97 | R60: 55 | T60: 37 | U60: 8 | V60: 55 | W60: 47.5 | X60: 5.56 | Y60: 55 | Z60: 46
B61: 15 | C61: 15 | D61: 1.05 | E61: 19 | F61: 5 | G61: 22 | I61: 19 | J61: 35 | K61: 2.9 | L61: 15 | O61: 56 | P61: 51 | Q61: 2 | R61: 56 | T61: 37.5 | U61: 8.25 | V61: 56 | W61: 48 | X61: 5.64 | Y61: 56 | Z61: 45
B62: 14 | C62: 14 | D62: 1 | E62: 18 | G62: 22.5 | I62: 18 | J62: 35.2 | K62: 2.8 | L62: 14 | O62: 57 | P62: 52 | Q62: 2.03 | R62: 57 | S62: 19 | T62: 38 | U62: 8.5 | V62: 57 | W62: 48.5 | X62: 5.72 | Y62: 57 | Z62: 44
B63: 13 | C63: 13 | D63: 0.95 | E63: 17 | G63: 23 | H63: 3.25 | I63: 17 | J63: 35.4 | K63: 2.7 | L63: 13 | O63: 58 | Q63: 2.06 | R63: 58 | T63: 38.5 | U63: 8.75 | V63: 58 | W63: 49 | X63: 5.88 | Y63: 58 | Z63: 43
B64: 12 | C64: 12 | D64: 0.9 | E64: 16 | F64: 4 | G64: 24 | I64: 16 | J64: 35.6 | K64: 2.6 | L64: 12 | O64: 59 | P64: 53 | Q64: 2.09 | R64: 59 | T64: 39 | V64: 59 | W64: 49.5 | X64: 5.88 | Y64: 59 | Z64: 42
B65: 11 | C65: 11 | D65: 0.85 | E65: 15 | G65: 25 | I65: 15 | J65: 35.8 | K65: 2.5 | L65: 11 | O65: 60 | Q65: 2.12 | R65: 60 | S65: 20 | T65: 39.5 | U65: 9 | V65: 60 | W65: 50 | X65: 5.96 | Y65: 60 | Z65: 41
B66: 10 | C66: 10 | D66: 0.8 | E66: 14 | G66: 26 | H66: 3 | I66: 14 | J66: 36 | K66: 2.4 | L66: 10 | O66: 61 | P66: 54 | Q66: 2.15 | R66: 61 | T66: 40 | V66: 61 | W66: 50.5 | X66: 6.04 | Y66: 61 | Z66: 40
B67: 9 | C67: 9 | D67: 0.75 | E67: 13 | F67: 3 | G67: 27 | I67: 13 | J67: 36.2 | K67: 2.2 | L67: 9 | O67: 62 | Q67: 2.18 | R67: 62 | T67: 40.5 | U67: 9.25 | V67: 62 | W67: 51 | X67: 6.12 | Y67: 62 | Z67: 39
B68: 8 | C68: 8 | D68: 0.7 | E68: 12 | G68: 28 | H68: 3.75 | I68: 12 | J68: 36.4 | K68: 2 | L68: 8 | O68: 63 | P68: 55 | Q68: 2.21 | R68: 63 | S68: 21 | T68: 41 | V68: 63 | W68: 51.5 | X68: 6.2 | Y68: 63 | Z68: 38
B69: 7 | C69: 7 | D69: 0.65 | E69: 11 | G69: 29 | I69: 11 | J69: 36.6 | K69: 1.9 | L69: 7 | O69: 64 | Q69: 2.24 | R69: 64 | T69: 41.5 | U69: 9.5 | V69: 64 | W69: 52 | X69: 6.28 | Y69: 64 | Z69: 37
B70: 6 | C70: 6 | D70: 0.6 | E70: 10 | F70: 2 | G70: 30 | H70: 2.5 | I70: 10 | J70: 36.8 | K70: 1.8 | L70: 6 | O70: 65 | P70: 56 | Q70: 2.27 | R70: 65 | T70: 42 | U70: 9.75 | V70: 65 | W70: 52.5 | X70: 6.36 | Y70: =O70 -> 65 | Z70: 36
B71: 5 | C71: 5 | D71: 0.55 | E71: 9 | G71: 32 | I71: 9 | J71: 37 | K71: 1.7 | L71: =B71 -> 5 | O71: 66 | Q71: 2.3 | R71: 66 | S71: 22 | T71: 42.5 | U71: 10 | V71: 66 | W71: 53 | X71: 6.45 | Y71: 66 | Z71: 35
B72: 4 | C72: 4 | D72: 0.5 | E72: 8 | G72: 34 | H72: 2 | I72: 8 | J72: =J71+J$3 -> 37.2 | K72: 1.5 | L72: =B72 -> 4 | O72: 67 | P72: 57 | Q72: 2.33 | R72: 67 | T72: 43 | V72: 67 | W72: 53.5 | X72: 6.55 | Y72: 67 | Z72: 34
B73: 3 | C73: 3 | D73: 0.45 | E73: 6 | F73: 1 | G73: 36 | I73: 7 | J73: =J72+J$3 -> 37.4 | K73: 1.3 | L73: =B73 -> 3 | O73: 68 | P73: 58 | Q73: 2.36 | R73: 68 | S73: 23 | T73: 43.5 | U73: 10.25 | V73: 68 | W73: 54 | X73: 6.65 | Y73: 68 | Z73: 33
B74: 2 | C74: 2 | D74: 0.4 | E74: 4 | G74: 38 | I74: 6 | J74: =J73+J$3 -> 37.6 | K74: 1.1 | L74: =B74 -> 2 | O74: 69 | P74: 59 | Q74: 2.39 | R74: 69 | T74: 44 | V74: 69 | W74: 54.5 | X74: 6.75 | Y74: 69 | Z74: 32
B75: 1 | C75: 1 | D75: 0.35 | E75: 3 | G75: 40 | H75: 1.5 | I75: 4 | J75: =J74+J$3 -> 37.8 | K75: 1 | L75: =B75 -> 1 | O75: 70 | P75: 60 | Q75: 2.42 | R75: 70 | S75: 24 | T75: 44.5 | U75: 10.5 | V75: 70 | W75: 55 | X75: 6.85 | Y75: 70 | Z75: 31
O76: 71 | Q76: 2.45 | R76: 71 | T76: 45 | V76: 71 | W76: 55.5 | Y76: 71 | Z76: 30
O77: 72 | Q77: 2.48 | R77: 72 | T77: 45.5 | V77: 72 | W77: 56 | Y77: 72 | Z77: 29
O78: 73 | Q78: 2.51 | R78: 73 | T78: 46 | V78: 73 | W78: 56.5 | Y78: 73 | Z78: 28
O79: 74 | Q79: 2.54 | R79: 74 | T79: 46.5 | V79: 74 | W79: 57 | Y79: 74 | Z79: 27
O80: 75 | Q80: 2.57 | R80: 75 | T80: 47 | V80: 75 | W80: 57.5 | Y80: 75 | Z80: 26
O81: 76 | Q81: 2.6 | R81: 76 | T81: 47.5 | V81: 76 | W81: 58 | Y81: 76 | Z81: 25
O82: 77 | Q82: 2.63 | R82: 77 | T82: 48 | V82: 77 | W82: 58.5 | Y82: 77 | Z82: 24
O83: 78 | Q83: 2.66 | R83: 78 | T83: 48.5 | V83: 78 | W83: 59 | Y83: 78 | Z83: 23
O84: 79 | Q84: 2.69 | R84: 79 | T84: 49 | V84: 79 | W84: 59.5 | Y84: 79 | Z84: 22
O85: 80 | Q85: 2.72 | R85: 80 | T85: 49.5 | V85: 80 | W85: 60 | Y85: 80 | Z85: 21
O86: 81 | Q86: 2.75 | T86: 50 | W86: 60.5 | Y86: 81 | Z86: 20
O87: 82 | Q87: 2.78 | T87: 50.5 | W87: 61 | Y87: 82 | Z87: 19
O88: 83 | Q88: 2.81 | T88: 51 | W88: 61.5 | Y88: 83 | Z88: 18
O89: 84 | Q89: 2.84 | T89: 51.5 | W89: 62 | Y89: 84 | Z89: 17
O90: 85 | Q90: 2.87 | T90: 52 | W90: 62.5 | Y90: 85 | Z90: 16
O91: 86 | Q91: 2.9 | W91: 63 | Y91: 86 | Z91: 15
O92: 87 | Q92: 2.93 | W92: 63.5 | Y92: 87 | Z92: 14
O93: 88 | Q93: 2.96 | W93: 64 | Y93: 88 | Z93: 13
O94: 89 | Q94: 2.99 | W94: 64.5 | Y94: 89 | Z94: 12
O95: 90 | Q95: 3.02 | W95: 65 | Y95: 90 | Z95: 11
O96: 91 | W96: 65.5 | Y96: 91 | Z96: 10
O97: 92 | W97: 66 | Y97: 92 | Z97: 9
O98: 93 | W98: 66.5 | Y98: 93 | Z98: 8
O99: 94 | W99: 67 | Y99: 94 | Z99: 7
O100: 95 | W100: 67.5 | Y100: 95 | Z100: 6
O101: 96 | W101: 68 | Y101: 96 | Z101: 5
O102: 97 | W102: 68.5 | Y102: 97 | Z102: 4
O103: 98 | W103: 69 | Y103: 98 | Z103: 3
O104: 99 | W104: 69.5 | Y104: 99 | Z104: 2
O105: 100 | W105: 70 | Y105: 100 | Z105: 1
O106: =O4 -> Points Field | P106: =P4 -> Balance test 4 x 15 sec | Q106: =Q4 -> Standing long jump | R106: Speed Bounc 20 sec | S106: Target throw | T106: Hi Stepper 4 x 8 m | U106: Chest Push 1 kg | V106: Vertical Jump | W106: Shuttle Run 20 x 5 m | X106: Standing Triple Jump | Y106: Points Field | Z106: Points Track
